bitfinex/quotes_BTCUSD_20220101
["timestamp","ask_amount","ask_price","bid_price","bid_amount"]
[1641014250305,0.01504614,46789.0,46788.0,0.77221522]
[1641014250501,0.01504614,46789.0,46788.0,1.0857236]
[1641014250703,0.01061,46789.0,46788.0,1.0857236]
[1641014251102,0.01061,46789.0,46788.0,1.10628723]
[1641014251302,0.01061,46789.0,46788.0,1.08696433]
[1641014252142,0.01061,46789.0,46788.0,1.10766055]
[1641014252341,0.01061,46789.0,46788.0,1.08709692]
[1641014252940,0.01061,46789.0,46788.0,0.98709692]
[1641014253140,0.01061,46789.0,46788.0,0.67467741]
[1641014253341,0.01061,46789.0,46788.0,0.07354559]
[1641014253540,0.01061,46789.0,46788.0,0.02011959]
[1641014254242,0.01061,46789.0,46785.0,0.72703526]
[1641014254444,0.01061,46789.0,46785.0,0.12138557]
[1641014254742,0.01061,46789.0,46787.0,0.053436]
[1641014254947,0.01061,46789.0,46788.0,1.24643726]
[1641014255145,0.01061,46789.0,46788.0,0.47643726]
[1641014255596,0.01061,46789.0,46788.0,0.57643726]
[1641014256196,0.01061,46789.0,46788.0,0.59490206]
[1641014256402,0.01061,46789.0,46788.0,1.07490206]
[1641014257197,0.01061,46789.0,46788.0,1.0959069]
[1641014257499,0.01061,46789.0,46788.0,1.0774421]
[1641014258098,0.01061,46789.0,46788.0,1.09585578]
[1641014258297,0.01061,46789.0,46788.0,1.07485094]
[1641014258496,0.01061,46789.0,46788.0,0.69485094]
[1641014259143,0.01061,46789.0,46788.0,0.7163586]
[1641014259338,0.01061,46789.0,46788.0,0.69794492]
[1641014259535,0.002,46789.0,46788.0,0.69794492]
[1641014259735,0.212,46789.0,46788.0,0.69794492]
[1641014260234,0.212,46789.0,46788.0,0.69729139]
[1641014261236,0.22061,46789.0,46788.0,0.71539808]
[1641014261435,0.22061,46789.0,46788.0,0.69454395]
[1641014262237,0.22061,46789.0,46788.0,0.71398751]
[1641014262438,0.22061,46789.0,46788.0,0.69588082]
[1641014263091,0.22061,46789.0,46788.0,0.71573648]
[1641014263293,0.01304731,46791.0,46789.0,1.14]
[1641014263492,0.01304731,46791.0,46790.0,1.44622474]
[1641014263693,0.00022786,46791.0,46790.0,1.14124657]
[1641014263892,0.00022786,46791.0,46790.0,1.29124657]
[1641014264092,0.00022786,46791.0,46790.0,4.55915678]
[1641014265096,0.00022786,46791.0,46790.0,4.57989962]
[1641014265297,0.00883786,46791.0,46790.0,4.57989962]
[1641014265694,0.00861,46791.0,46790.0,4.57989962]
[1641014266294,0.00861,46791.0,46790.0,4.66152536]
[1641014266656,0.00861,46791.0,46790.0,4.67181719]
[1641014267245,0.00861,46791.0,46790.0,4.69353586]
[1641014267445,0.00861,46791.0,46790.0,4.67191012]
[1641014267847,0.00861,46791.0,46790.0,4.61191012]
[1641014268245,0.00861,46791.0,46790.0,4.63053918]
[1641014268448,0.00861,46791.0,46790.0,4.60882051]
[1641014269247,0.00861,46791.0,46790.0,4.62965379]
[1641014269448,0.00861,46791.0,46790.0,4.61102473]
[1641014270394,0.21861,46791.0,46790.0,4.60970884]
[1641014271192,0.21861,46791.0,46790.0,4.62819904]
[1641014271393,0.21861,46791.0,46790.0,4.60868165]
[1641014272194,0.08742343,46791.0,46790.0,4.63037793]
[1641014272395,0.08742343,46791.0,46790.0,4.61188773]
[1641014273196,0.09603343,46791.0,46790.0,4.63159982]
[1641014273597,0.09603343,46791.0,46790.0,4.60990354]
[1641014274836,0.09603343,46791.0,46790.0,4.62883456]
[1641014275037,0.09603343,46791.0,46790.0,4.60912247]
[1641014275236,0.09603343,46791.0,46790.0,4.62857824]
[1641014275436,0.00989592,46798.0,46791.0,1.14]
[1641014275639,0.00989592,46798.0,46794.0,0.053416]
[1641014275839,0.00989592,46798.0,46795.0,0.32491509]
[1641014276036,0.00989592,46798.0,46795.0,0.52491509]
[1641014276238,0.00989592,46798.0,46796.0,0.13527274]
[1641014276239,0.00861,46798.0,46796.0,0.13527274]
[1641014276438,0.00861,46798.0,46797.0,1.43686599]
[1641014276637,0.00861,46798.0,46797.0,1.83008475]
[1641014277237,0.00861,46798.0,46797.0,1.05055326]
[1641014278384,0.00861,46798.0,46797.0,0.72907753]
[1641014278585,0.00861,46798.0,46797.0,0.70860902]
[1641014279386,0.00861,46798.0,46797.0,0.730582]
[1641014279588,0.0002,46802.0,46799.0,0.01061]
[1641014279790,0.0002,46802.0,46800.0,0.00120672]
[1641014279791,0.0001,46802.0,46800.0,0.00120672]
[1641014279990,0.0004,46810.0,46801.0,0.00122965]
[1641014280195,0.0004,46810.0,46807.0,0.00120755]
[1641014280390,0.0004,46810.0,46804.0,0.05340048]
[1641014280591,0.0004,46810.0,46809.0,1.39730697]
[1641014280794,0.0004,46810.0,46809.0,1.47699697]
[1641014280990,0.0004,46810.0,46809.0,1.57699697]
[1641014281395,0.0004,46810.0,46809.0,1.59869]
[1641014282353,0.0004,46810.0,46809.0,1.61946817]
[1641014282551,0.0004,46810.0,46809.0,1.60016899]
[1641014282850,0.0004,46810.0,46809.0,0.45777514]
[1641014283053,0.0004,46810.0,46809.0,0.67516693]
[1641014283252,0.0004,46810.0,46809.0,0.99516693]
[1641014283455,0.00901,46810.0,46809.0,0.67402961]
[1641014284854,0.00901,46810.0,46809.0,0.69304146]
[1641014285055,0.00901,46810.0,46809.0,0.67340061]
[1641014285255,0.00901,46810.0,46809.0,0.69528859]
[1641014285496,0.00901,46810.0,46809.0,0.67627674]
[1641014286597,0.00901,46810.0,46809.0,0.69650205]
[1641014286798,0.00901,46810.0,46809.0,0.65438876]
[1641014287399,0.01762,46810.0,46809.0,0.67539087]
[1641014288397,0.01762,46810.0,46809.0,0.69470792]
[1641014288601,0.01713425,46810.0,46809.0,1.81370581]
[1641014288999,0.01713425,46810.0,46809.0,0.67370581]
[1641014289244,0.01713425,46810.0,46809.0,1.19370581]
[1641014289445,0.01713425,46810.0,46809.0,1.19573564]
[1641014290444,0.01713425,46810.0,46809.0,1.2171841]
[1641014290648,0.0003,46823.0,46820.0,4.43993943]
[1641014291255,0.00407233,46823.0,46820.0,4.43993943]
[1641014291448,0.017519,46821.0,46820.0,4.46137316]
[1641014292448,0.017519,46821.0,46820.0,4.48196291]
[1641014292646,0.012519,46821.0,46820.0,4.46052918]
[1641014293903,0.012519,46821.0,46820.0,4.48133201]
[1641014294099,0.012519,46821.0,46820.0,4.46074226]
[1641014294999,0.012519,46821.0,46820.0,4.48084871]
[1641014295201,0.012519,46821.0,46820.0,4.46004588]
[1641014295399,0.012519,46821.0,46820.0,4.47982253]
[1641014296300,0.012519,46821.0,46820.0,4.46118168]
[1641014297540,0.012519,46821.0,46820.0,4.48150048]
[1641014297739,0.012519,46821.0,46820.0,4.46025823]
[1641014298339,0.012519,46821.0,46820.0,4.479757]
[1641014298540,0.012519,46821.0,46820.0,4.4594382]
[1641014299440,0.012519,46821.0,46820.0,4.4813447]
[1641014299638,0.012519,46821.0,46820.0,4.46184593]
[1641014300040,0.00392712,46823.0,46820.0,4.46184593]
[1641014300242,0.00987133,46830.0,46822.0,0.67]
[1641014300702,0.00987133,46830.0,46820.0,4.4596421]
[1641014301504,0.00987133,46830.0,46820.0,4.47945117]
[1641014301708,0.00987133,46830.0,46822.0,0.053397]
[1641014301901,7.321e-05,46829.0,46822.0,0.053397]
[1641014302501,7.321e-05,46829.0,46820.0,4.48043305]
[1641014303307,7.321e-05,46829.0,46820.0,4.43993943]
[1641014303506,7.321e-05,46829.0,46820.0,4.45868785]
[1641014303705,0.00868321,46829.0,46820.0,4.45868785]
[1641014303904,0.00868321,46829.0,46820.0,4.51208685]
[1641014304561,0.00868321,46829.0,46820.0,4.53319098]
[1641014304762,0.00868321,46829.0,46820.0,4.51444256]
[1641014305564,0.00868321,46829.0,46820.0,4.46186658]
[1641014306265,0.00368321,46829.0,46820.0,4.46186658]
[1641014306563,0.00368321,46829.0,46820.0,4.46048611]
[1641014307566,0.00368321,46829.0,46820.0,4.47955426]
[1641014307767,0.00368321,46829.0,46820.0,4.45900758]
[1641014307998,0.00368321,46829.0,46820.0,4.51240758]
[1641014308398,0.00368321,46829.0,46820.0,4.53403487]
[1641014308597,0.00368321,46829.0,46820.0,4.51496672]
[1641014309598,0.00368321,46829.0,46820.0,4.5351119]
[1641014309800,0.00368321,46829.0,46820.0,4.51348461]
[1641014310598,0.00368321,46829.0,46820.0,4.53484768]
[1641014310798,0.00368321,46829.0,46820.0,4.5147025]
[1641014311648,0.00368321,46829.0,46820.0,4.53328932]
[1641014312242,0.00368321,46829.0,46820.0,4.49333943]
[1641014312440,6.614e-05,46828.0,46820.0,4.51383324]
[1641014313442,6.614e-05,46828.0,46820.0,4.5331983]
[1641014313642,6.614e-05,46828.0,46820.0,4.51270449]
[1641014314440,6.614e-05,46828.0,46820.0,4.53170736]
[1641014314640,6.614e-05,46828.0,46820.0,4.5123423]
[1641014315244,6.614e-05,46828.0,46822.0,0.053398]
[1641014318891,6.614e-05,46828.0,46822.0,0.048398]
[1641014322896,0.0001327,46828.0,46822.0,0.048398]
[1641014323096,0.00019926,46828.0,46822.0,0.048398]
[1641014323697,0.0003,46832.0,46822.0,0.048398]
[1641014323698,0.31879633,46836.0,46824.0,0.61175294]
[1641014323898,0.36879633,46836.0,46824.0,0.66514894]
[1641014324198,0.42740633,46836.0,46824.0,0.66514894]
[1641014324396,0.42740633,46836.0,46824.0,0.3679784]
[1641014324597,0.42740633,46836.0,46824.0,0.38817316]
[1641014324997,0.053396,46834.0,46824.0,0.38817316]
[1641014325597,0.053396,46834.0,46824.0,0.40915132]
[1641014325799,0.053396,46834.0,46824.0,0.38895656]
[1641014326403,0.048396,46834.0,46824.0,0.38895656]
[1641014326646,0.048396,46834.0,46824.0,0.40742732]
[1641014326847,0.048396,46834.0,46824.0,0.38644916]
[1641014327549,0.048396,46834.0,46824.0,0.40644123]
[1641014327750,0.048396,46834.0,46824.0,0.38797047]
[1641014328651,0.048396,46834.0,46824.0,0.40818966]
[1641014328849,0.048396,46834.0,46824.0,0.38819759]
[1641014329754,0.048396,46834.0,46824.0,0.40896948]
[1641014329952,0.048396,46834.0,46824.0,0.38875029]
[1641014330688,0.048396,46834.0,46824.0,0.41042747]
[1641014330889,0.048396,46834.0,46824.0,0.38965558]
[1641014331694,0.048396,46834.0,46824.0,0.04199601]
[1641014331891,0.053401,46829.0,46824.0,0.02031883]
[1641014332092,0.3034161,46833.0,46824.0,0.02031883]
[1641014332897,0.3034161,46833.0,46823.0,0.01600673]
[1641014333293,0.1068,46835.0,46823.0,0.01600673]
[1641014333494,0.1568,46835.0,46823.0,0.01600673]
[1641014333898,0.053398,46832.0,46823.0,0.01600673]
[1641014335844,0.053398,46832.0,46822.0,0.3594046]
[1641014336250,0.053398,46832.0,46823.0,0.01594969]
[1641014336944,0.05267226,46832.0,46823.0,0.01594969]
[1641014338004,0.053396,46833.0,46823.0,0.01594969]
[1641014340102,0.053396,46833.0,46823.0,0.10748369]
[1641014340703,0.053396,46833.0,46823.0,0.091534]
[1641014341104,0.053396,46833.0,46823.0,0.10749321]
[1641014343173,0.053396,46833.0,46823.0,0.05409721]
[1641014344167,0.062006,46833.0,46823.0,0.05409721]
[1641014345620,0.062006,46833.0,46823.0,0.038138]
[1641014346226,0.062006,46833.0,46823.0,0.05409568]
[1641014348227,0.3206015,46830.0,46823.0,0.05409568]
[1641014350768,0.3206015,46830.0,46823.0,0.038138]
[1641014351166,0.3206015,46830.0,46823.0,0.0540963]
[1641014352370,0.053397,46832.0,46823.0,0.0540963]
[1641014355595,0.053397,46832.0,46823.0,0.038138]
[1641014356196,0.053397,46832.0,46823.0,0.05409593]
[1641014357274,0.31841491,46831.0,46823.0,0.05409593]
[1641014357572,0.05,46830.0,46823.0,0.05409593]
[1641014357773,0.053406,46827.0,46823.0,0.05409593]
[1641014357973,0.6564632,46826.0,46823.0,0.05409593]
[1641014358172,0.25898038,46825.0,46823.0,0.05409593]
[1641014358372,0.63548181,46824.0,46823.0,0.05409593]
[1641014358580,0.78308796,46824.0,46823.0,0.05409593]
[1641014360808,0.78308796,46824.0,46823.0,0.038138]
[1641014361312,0.83308796,46824.0,46823.0,0.038138]
[1641014361910,0.78308796,46824.0,46823.0,0.038138]
[1641014362710,0.48545015,46824.0,46823.0,0.038138]
[1641014362912,0.337844,46824.0,46823.0,0.038138]
[1641014363110,0.053408,46825.0,46823.0,0.038138]
[1641014364158,0.14760615,46824.0,46823.0,0.038138]
[1641014366558,0.33877433,46827.0,46823.0,0.038138]
[1641014366955,0.38877433,46827.0,46823.0,0.038138]
[1641014367156,0.28537033,46827.0,46823.0,0.038138]
[1641014367912,0.14760615,46824.0,46823.0,0.038138]
[1641014369311,0.14760615,46824.0,46823.0,0.023138]
[1641014373155,0.14760615,46824.0,46823.0,0.018138]
[1641014373859,0.48545015,46824.0,46823.0,0.018138]
[1641014379248,0.76248279,46824.0,46823.0,0.018138]
[1641014380348,0.48545015,46824.0,46823.0,0.018138]
[1641014380750,0.76555301,46824.0,46823.0,0.018138]
[1641014381150,0.76473085,46824.0,46823.0,0.018138]
[1641014381352,0.48545015,46824.0,46823.0,0.018138]
[1641014381752,0.77207052,46824.0,46823.0,0.018138]
[1641014381952,0.7631784,46824.0,46823.0,0.018138]
[1641014382156,0.48545015,46824.0,46823.0,0.018138]
[1641014393913,0.337844,46824.0,46823.0,0.018138]
[1641014394159,0.337844,46824.0,46823.0,0.118138]
[1641014394360,0.27306372,46828.0,46823.0,0.118138]
[1641014394559,0.02712021,46833.0,46823.0,0.118138]
[1641014395262,0.053401,46829.0,46823.0,0.118138]
[1641014395659,0.60136431,46831.0,46823.0,0.018138]
[1641014395861,0.31473001,46831.0,46823.0,0.018138]
[1641014396263,0.31473001,46831.0,46823.0,0.03409622]
[1641014396864,0.36380604,46830.0,46823.0,0.03409622]
[1641014397918,0.31040704,46830.0,46823.0,0.03409622]
[1641014398817,0.31040704,46830.0,46826.0,0.1]
[1641014399225,0.053398,46831.0,46826.0,0.1]
[1641014399419,0.017219,46833.0,46826.0,0.1]
[1641014399719,0.017219,46833.0,46827.0,0.1]
[1641014399918,0.337844,46832.0,46827.0,0.1]
[1641014400318,0.391242,46832.0,46827.0,0.1]
[1641014401325,0.28028829,46831.0,46827.0,0.1]
[1641014401520,0.053401,46829.0,46827.0,0.1]
[1641014401966,0.053401,46829.0,46824.0,0.0187684]
[1641014402562,0.053401,46829.0,46823.0,0.03409544]
[1641014405604,0.0534,46830.0,46823.0,0.03409544]
[1641014405808,0.0534,46830.0,46823.0,0.018138]
[1641014406206,0.0534,46830.0,46823.0,0.03409635]
[1641014407206,0.0534,46830.0,46824.0,0.1]
[1641014408008,0.0484,46830.0,46824.0,0.1]
[1641014408214,0.053403,46828.0,46823.0,0.13409635]
[1641014408413,0.05315844,46828.0,46823.0,0.03409635]
[1641014408613,0.05315844,46828.0,46823.0,0.13409635]
[1641014408912,0.05315844,46828.0,46823.0,0.03409635]
[1641014409184,0.05315844,46828.0,46824.0,0.1]
[1641014409881,0.05315844,46828.0,46823.0,0.03409635]
[1641014410081,0.0534,46830.0,46824.0,0.1]
[1641014411085,0.017219,46833.0,46826.0,0.1]
[1641014411483,0.053397,46832.0,46826.0,0.1]
[1641014411782,0.048397,46832.0,46826.0,0.1]
[1641014412783,0.048397,46832.0,46824.0,0.58200863]
[1641014413013,0.017219,46833.0,46824.0,0.58200863]
[1641014413213,0.017219,46833.0,46824.0,0.58444199]
[1641014413413,0.017219,46833.0,46824.0,0.60452138]
[1641014413616,0.017219,46833.0,46824.0,0.58364368]
[1641014413815,0.017219,46833.0,46829.0,0.1]
[1641014414015,0.053398,46832.0,46829.0,0.1]
[1641014414218,0.017219,46833.0,46829.0,0.1]
[1641014414618,0.017219,46833.0,46824.0,0.02035247]
[1641014414818,0.017219,46833.0,46824.0,0.12035247]
[1641014415617,0.070617,46833.0,46824.0,0.02035247]
[1641014415819,0.070617,46833.0,46825.0,0.1]
[1641014416018,0.170617,46833.0,46825.0,0.1]
[1641014416321,0.117219,46833.0,46825.0,0.1]
[1641014416523,0.067219,46833.0,46825.0,0.1]
[1641014416757,0.053401,46830.0,46825.0,0.1]
[1641014417358,0.1,46832.0,46825.0,0.1]
[1641014417558,0.05,46832.0,46825.0,0.1]
[1641014417858,0.053401,46830.0,46825.0,0.1]
[1641014418357,0.05,46832.0,46825.0,0.1]
[1641014418559,0.017219,46833.0,46825.0,0.1]
[1641014419858,0.053399,46832.0,46825.0,0.1]
[1641014420405,0.017219,46833.0,46826.0,0.28468328]
[1641014420609,0.836,46840.0,46836.0,0.09814234]
[1641014420808,0.0004,46843.0,46839.0,0.10124393]
[1641014421009,0.0004,46843.0,46842.0,0.1]
[1641014421227,0.0201,46847.0,46842.0,0.1]
[1641014421415,0.0165,46847.0,46843.0,0.82]
[1641014421607,0.0165,46847.0,46844.0,0.2436214]
[1641014422510,0.0165,46847.0,46845.0,0.35461708]
[1641014423507,0.0165,46847.0,46845.0,0.37431911]
[1641014424466,0.0165,46847.0,46845.0,0.39460859]
[1641014424665,0.0165,46847.0,46845.0,0.37490656]
[1641014425269,0.0165,46847.0,46845.0,0.02028948]
[1641014425475,0.0165,46847.0,46845.0,0.04016193]
[1641014425668,0.0165,46847.0,46845.0,0.01987245]
[1641014426570,0.0165,46847.0,46844.0,0.2436214]
[1641014426868,0.0165,46847.0,46845.0,0.32892425]
[1641014427269,0.0165,46847.0,46845.0,0.32898425]
[1641014428129,0.01577509,46847.0,46845.0,0.32898425]
[1641014428530,0.01577509,46847.0,46845.0,0.3475731]
[1641014428735,0.01577509,46847.0,46846.0,1.33846085]
[1641014428933,0.01577509,46847.0,46846.0,1.43846085]
[1641014429235,0.01577509,46847.0,46846.0,0.49467045]
[1641014429432,0.0002,46850.0,46849.0,0.0012822]
[1641014429636,0.0001,46862.0,46849.0,0.1012822]
[1641014429837,0.0273,46869.0,46849.0,0.1012822]
[1641014429838,0.0223,46869.0,46863.0,0.00476174]
[1641014430034,0.0223,46869.0,46863.0,0.06896174]
[1641014430234,0.0004,46867.0,46863.0,0.06896174]
[1641014430635,0.0004,46867.0,46863.0,0.53896174]
[1641014430835,0.0053,46864.0,46863.0,1.08896174]
[1641014431034,0.0053,46864.0,46863.0,0.53896174]
[1641014431235,0.01543323,46869.0,46864.0,0.9]
[1641014431435,0.01543323,46869.0,46868.0,0.87]
[1641014431701,0.01543323,46869.0,46868.0,0.10127486]
[1641014432089,0.01543323,46869.0,46868.0,0.40586562]
[1641014432290,0.01543323,46869.0,46868.0,0.10127486]
[1641014433190,0.02404323,46869.0,46868.0,0.10127486]
[1641014433390,0.02404323,46869.0,46868.0,0.41126538]
[1641014434393,0.02404323,46869.0,46868.0,1.24126538]
[1641014434592,0.02404323,46869.0,46868.0,1.34126538]
[1641014434992,0.00030174,46875.0,46869.0,1.13]
[1641014435193,0.00151626,46888.0,46869.0,1.13]
[1641014435194,0.0003,46888.0,46881.0,0.00124866]
[1641014435429,0.0003,46888.0,46883.0,0.40106662]
[1641014435827,0.0003,46888.0,46883.0,0.1]
[1641014436228,0.00324727,46886.0,46883.0,0.1]
[1641014436431,0.00324727,46886.0,46883.0,0.85]
[1641014437030,0.00324727,46886.0,46883.0,0.1]
[1641014437329,0.00901,46884.0,46883.0,0.1]
[1641014437533,0.00901,46884.0,46883.0,0.1217362]
[1641014437928,0.00901,46884.0,46883.0,0.1217962]
[1641014438728,0.00901,46884.0,46883.0,0.10006]
[1641014439762,0.00901,46884.0,46883.0,0.40458179]
[1641014440162,0.00401,46884.0,46883.0,1.35458179]
[1641014440363,0.00401,46884.0,46883.0,0.64383374]
[1641014440563,0.00401,46884.0,46883.0,0.66186577]
[1641014440863,0.00401,46884.0,46883.0,0.35734398]
[1641014441266,0.01262,46884.0,46883.0,0.67669755]
[1641014441663,0.01262,46884.0,46883.0,0.67546595]
[1641014441863,0.01262,46884.0,46883.0,0.65743392]
[1641014442563,0.01262,46884.0,46883.0,0.77834995]
[1641014443007,0.00419886,46884.0,46883.0,0.2407662]
[1641014443407,0.00419886,46884.0,46883.0,0.5607662]
[1641014443608,0.00419886,46884.0,46883.0,0.55426898]
[1641014443808,0.00419886,46884.0,46883.0,0.2198258]
[1641014444007,0.00419886,46884.0,46883.0,0.76978706]
[1641014444613,0.00419886,46884.0,46883.0,0.470153]
[1641014444810,0.00419886,46884.0,46883.0,0.10006]
[1641014446210,0.00419886,46884.0,46883.0,0.4033365]
[1641014446409,0.00419886,46884.0,46883.0,0.10006]
[1641014450279,0.00419886,46884.0,46883.0,0.47006]
[1641014450729,0.00419886,46884.0,46883.0,0.10006]
[1641014451227,0.00810886,46885.0,46884.0,1.06]
[1641014451426,0.00810886,46885.0,46884.0,1.35218069]
[1641014451827,0.00810886,46885.0,46884.0,0.29218069]
[1641014452226,0.00810886,46885.0,46883.0,0.10006]
[1641014452227,0.01671886,46885.0,46883.0,0.10006]
[1641014452628,0.01671886,46885.0,46883.0,0.12051536]
[1641014453033,0.01671886,46885.0,46884.0,1.42592303]
[1641014453229,0.01671886,46885.0,46884.0,0.87592303]
[1641014453429,0.01671886,46885.0,46884.0,0.97592303]
[1641014453633,0.01671886,46885.0,46884.0,0.99395797]
[1641014453830,0.01671886,46885.0,46884.0,0.41395797]
[1641014454275,0.01671886,46885.0,46884.0,0.31395797]
[1641014454682,0.01671886,46885.0,46884.0,0.03963757]
[1641014454876,0.01671886,46885.0,46884.0,0.02160263]
[1641014455878,0.01671886,46885.0,46883.0,0.10006]
[1641014455879,0.00881,46885.0,46883.0,0.10006]
[1641014456875,0.00881,46885.0,46883.0,0.39778218]
[1641014457075,0.00881,46885.0,46884.0,1.41499645]
[1641014457275,0.00881,46885.0,46884.0,0.29499645]
[1641014457575,0.00881,46885.0,46884.0,0.29505645]
[1641014457780,0.00881,46885.0,46884.0,6e-05]
[1641014459320,0.00881,46885.0,46883.0,0.09006]
[1641014459522,0.00855329,46885.0,46883.0,0.09006]
[1641014459722,0.00855329,46885.0,46884.0,1.13]
[1641014459924,0.00855329,46885.0,46884.0,1.52102859]
[1641014460222,0.00855329,46885.0,46884.0,1.40505085]
[1641014460425,0.00355329,46885.0,46884.0,1.40505085]
[1641014460822,0.00355329,46885.0,46884.0,1.32340261]
[1641014461021,0.00355329,46885.0,46884.0,1.37340261]
[1641014461425,0.00355329,46885.0,46884.0,1.42340261]
[1641014461863,0.00355329,46885.0,46884.0,1.37689949]
[1641014462262,8.744e-05,46885.0,46884.0,1.42689949]
[1641014462462,8.744e-05,46885.0,46884.0,1.37689949]
[1641014462662,8.744e-05,46885.0,46884.0,1.39788789]
[1641014462862,8.744e-05,46885.0,46884.0,1.66598621]
[1641014463261,0.00869744,46885.0,46884.0,0.29603925]
[1641014463466,0.00869744,46885.0,46884.0,0.17226925]
[1641014463662,0.00869744,46885.0,46884.0,0.09037765]
[1641014463864,0.00869744,46885.0,46884.0,0.0181084]
[1641014464864,0.00869744,46885.0,46883.0,0.09006]
[1641014467919,0.00869744,46885.0,46883.0,0.196702]
[1641014469020,0.00869744,46885.0,46883.0,0.09006]
[1641014469465,0.00821178,46885.0,46883.0,0.09006]
[1641014469864,0.00821178,46885.0,46884.0,1.13]
[1641014470065,0.00821178,46885.0,46884.0,1.54041458]
[1641014470264,0.00821178,46885.0,46884.0,0.10127478]
[1641014470868,0.00821178,46885.0,46884.0,0.12104148]
[1641014471066,0.00821178,46885.0,46884.0,1.19177544]
[1641014471270,0.00821178,46885.0,46884.0,0.79104148]
[1641014471467,0.00821178,46885.0,46884.0,0.89104148]
[1641014471865,0.00821178,46885.0,46884.0,0.44227746]
[1641014472065,0.00821178,46885.0,46884.0,0.42623598]
[1641014472924,0.00829127,46885.0,46884.0,0.11967233]
[1641014473125,0.00829127,46885.0,46884.0,0.01967233]
[1641014473924,7.949e-05,46885.0,46883.0,0.09006]
[1641014474224,7.949e-05,46885.0,46881.0,0.02007305]
[1641014474225,7.949e-05,46885.0,46881.0,0.12007305]
[1641014474425,7.949e-05,46885.0,46881.0,0.02007305]
[1641014474925,7.949e-05,46885.0,46882.0,0.09006]
[1641014475324,0.00868949,46885.0,46882.0,0.09006]
[1641014475524,0.06202849,46885.0,46882.0,0.09006]
[1641014476127,0.00868949,46885.0,46882.0,0.09006]
[1641014479267,0.00868949,46885.0,46884.0,0.09006]
[1641014479668,0.00868949,46885.0,46877.0,0.00985966]
[1641014480268,0.00868949,46885.0,46876.0,0.0218125]
[1641014480269,0.00868949,46885.0,46883.0,0.09006]
[1641014484563,0.00868949,46885.0,46877.0,0.60564969]
[1641014484765,0.00868949,46885.0,46884.0,0.09006]
[1641014485562,7.949e-05,46885.0,46884.0,0.09006]
[1641014487265,7.949e-05,46885.0,46884.0,0.37691422]
[1641014487664,7.949e-05,46885.0,46884.0,0.47691422]
[1641014487926,7.949e-05,46885.0,46884.0,1.46691422]
[1641014488126,7.949e-05,46885.0,46884.0,1.76058901]
[1641014489028,7.949e-05,46885.0,46884.0,1.78165721]
[1641014490029,7.949e-05,46885.0,46884.0,1.78160617]
[1641014490430,0.00868949,46885.0,46884.0,1.78160617]
[1641014491032,0.00868949,46885.0,46884.0,1.80303855]
[1641014491232,0.00868949,46885.0,46884.0,1.78202139]
[1641014491431,0.00868949,46885.0,46884.0,0.79202139]
[1641014491671,0.00868949,46885.0,46884.0,1.11078404]
[1641014492066,0.00868949,46885.0,46884.0,1.13003709]
[1641014492670,0.00868949,46885.0,46884.0,1.08935166]
[1641014492869,0.00868949,46885.0,46884.0,1.10831618]
[1641014493869,0.00868949,46885.0,46884.0,1.12688763]
[1641014494070,0.00868949,46885.0,46884.0,1.10792311]
[1641014494971,0.00868949,46885.0,46884.0,1.12924754]
[1641014495174,0.00868949,46885.0,46884.0,1.08935166]
[1641014496029,0.00868949,46885.0,46884.0,1.10959128]
[1641014496629,0.00868949,46885.0,46884.0,0.21029962]
[1641014497029,0.00868949,46885.0,46884.0,0.12891639]
[1641014497230,0.00868949,46885.0,46884.0,0.10867677]
[1641014497931,0.00868949,46885.0,46884.0,0.40146521]
[1641014498130,0.00868949,46885.0,46884.0,0.48284844]
[1641014498931,0.00868949,46885.0,46884.0,0.50424302]
[1641014500068,0.00868949,46885.0,46884.0,0.52531]
[1641014500269,0.00868949,46885.0,46884.0,0.50391542]
[1641014500468,7.949e-05,46885.0,46884.0,0.50391542]
[1641014500669,7.949e-05,46885.0,46884.0,0.87391542]
[1641014501070,7.949e-05,46885.0,46884.0,0.52249135]
[1641014501271,7.949e-05,46885.0,46884.0,0.50142437]
[1641014501470,0.00868949,46885.0,46884.0,0.50142437]
[1641014502071,0.00868949,46885.0,46884.0,0.5213709]
[1641014502272,0.00868949,46885.0,46884.0,0.50279497]
[1641014503129,0.00868949,46885.0,46884.0,0.50160991]
[1641014503731,0.00368949,46885.0,46884.0,1.63160991]
[1641014503934,0.00343278,46885.0,46884.0,1.63160991]
[1641014504229,0.00343278,46885.0,46884.0,1.63288209]
[1641014505134,0.00343278,46885.0,46884.0,1.6544411]
[1641014505333,0.00343278,46885.0,46884.0,0.50440745]
[1641014505733,0.00744278,46886.0,46885.0,0.27]
[1641014505934,0.00744278,46886.0,46885.0,1.70708432]
[1641014506133,0.00744278,46886.0,46885.0,1.80708432]
[1641014507180,0.00744278,46886.0,46885.0,0.69903147]
[1641014507784,0.00744278,46886.0,46885.0,0.42903147]
[1641014508184,0.00744278,46886.0,46885.0,0.118606]
[1641014508581,0.00744278,46886.0,46885.0,0.018606]
[1641014509582,0.00744278,46886.0,46885.0,0.478606]
[1641014509784,0.00744278,46886.0,46885.0,0.7704069]
[1641014509983,0.00744278,46886.0,46885.0,0.8518009]
[1641014510437,0.00744278,46886.0,46885.0,0.9018009]
[1641014511033,0.00744278,46886.0,46885.0,0.92284691]
[1641014511238,0.00744278,46886.0,46885.0,0.12104601]
[1641014511635,0.00744278,46886.0,46885.0,0.02104601]
[1641014512639,0.01605278,46886.0,46885.0,0.02104601]
[1641014512836,0.01605278,46886.0,46884.0,0.143375]
[1641014513638,0.01605278,46886.0,46885.0,0.2919686]
[1641014514042,0.01605278,46886.0,46885.0,0.39171548]
[1641014514485,0.01605278,46886.0,46885.0,0.49171548]
[1641014514685,0.01605278,46886.0,46885.0,1.05171548]
[1641014514884,0.00871,46886.0,46885.0,1.10171548]
[1641014515084,0.00136722,46886.0,46885.0,1.59371376]
[1641014515283,0.00136722,46886.0,46885.0,1.64371376]
[1641014516284,0.00136722,46886.0,46885.0,1.64327638]
[1641014516487,0.00136722,46886.0,46885.0,1.07327638]
[1641014517084,0.00136722,46886.0,46885.0,1.09283797]
[1641014517285,0.00136722,46886.0,46885.0,1.07153019]
[1641014517786,0.00136722,46886.0,46885.0,1.07279036]
[1641014518519,0.00136722,46886.0,46885.0,1.64279036]
[1641014518723,0.00136722,46886.0,46885.0,1.66215076]
[1641014518922,0.00136722,46886.0,46885.0,1.64258917]
[1641014519122,0.00306099,46888.0,46887.0,0.00125681]
[1641014519320,0.00306099,46888.0,46887.0,2.76766867]
[1641014519522,0.0002,46890.0,46888.0,1.13]